[Event "*** Titled Tuesday Blitz"]
[Site "Chess.com"]
[Date "2021.03.02"]
[Round "7"]
[White "LamaChampetre"]
[Black "zacachess"]
[Result "0-1"]
[WhiteElo "2216"]
[BlackElo "2441"]
[TimeControl "180+1"]
[EndTime "11:19:18 PST"]
[Termination "zacachess won by resignation"]

1. d4 {[%clk 0:03:00.9]} 1... Nf6 {[%clk 0:02:59.8]} 2. c4 {[%clk 0:03:01]} 2...
e6 {[%clk 0:03:00.2]} 3. Nf3 {[%clk 0:03:00.6]} 3... Bb4+ {[%clk 0:03:00]} 4.
Nbd2 {[%clk 0:03:00.2]} 4... b6 {[%clk 0:02:59.7]} 5. g3 {[%clk 0:02:59.5]} 5...
Bb7 {[%clk 0:02:59.8]} 6. Bg2 {[%clk 0:02:59.9]} 6... O-O {[%clk 0:02:59.2]} 7.
O-O {[%clk 0:02:59.8]} 7... c5 {[%clk 0:02:59.6]} 8. d5 {[%clk 0:02:33.7]} 8...
d6 {[%clk 0:02:52.5]} 9. Nb1 {[%clk 0:02:29.7]} 9... exd5 {[%clk 0:02:42.8]} 10.
Nh4 {[%clk 0:02:26.7]} 10... b5 {[%clk 0:02:03.3]} 11. cxd5 {[%clk 0:02:19.7]}
11... Bc8 {[%clk 0:02:00.7]} 12. a3 {[%clk 0:01:29.7]} 12... Ba5 {[%clk
0:02:00.6]} 13. a4 {[%clk 0:01:21.3]} 13... b4 {[%clk 0:01:54.2]} 14. b3 {[%clk
0:01:21.4]} 14... Re8 {[%clk 0:01:52.6]} 15. Nd2 {[%clk 0:01:15.4]} 15... Ba6
{[%clk 0:01:51]} 16. Re1 {[%clk 0:01:12.6]} 16... Nbd7 {[%clk 0:01:46.2]} 17.
Bb2 {[%clk 0:01:11.5]} 17... Ne5 {[%clk 0:01:41.8]} 18. Rc1 {[%clk 0:01:09.9]}
18... Qd7 {[%clk 0:01:32]} 19. Bxe5 {[%clk 0:00:47.4]} 19... Rxe5 {[%clk
0:01:31.4]} 20. Nc4 {[%clk 0:00:47.6]} 20... Bxc4 {[%clk 0:01:29.3]} 21. Rxc4
{[%clk 0:00:46.8]} 21... Rae8 {[%clk 0:01:29.8]} 22. e3 {[%clk 0:00:42.1]} 22...
Qb7 {[%clk 0:01:21.5]} 23. Nf3 {[%clk 0:00:15.3]} 23... Re4 {[%clk 0:01:15.3]}
24. Nd2 {[%clk 0:00:12.9]} 24... R4e7 {[%clk 0:01:06.7]} 25. Nb1 {[%clk
0:00:11.6]} 25... Nd7 {[%clk 0:01:02.8]} 26. Nd2 {[%clk 0:00:10.5]} 26... Bd8
{[%clk 0:00:58.6]} 27. e4 {[%clk 0:00:08.4]} 27... Nb6 {[%clk 0:00:58]} 28. Rc1
{[%clk 0:00:06.8]} 28... Nxd5 {[%clk 0:00:58]} 29. exd5 {[%clk 0:00:06.7]} 29...
Rxe1+ {[%clk 0:00:57.2]} 30. Qxe1 {[%clk 0:00:07.6]} 30... Rxe1+ {[%clk
0:00:57.3]} 31. Rxe1 {[%clk 0:00:08.5]} 31... Kf8 {[%clk 0:00:56.1]} 32. Nc4
{[%clk 0:00:08]} 32... Be7 {[%clk 0:00:54.2]} 33. a5 {[%clk 0:00:06.2]} 33...
Qd7 {[%clk 0:00:50.6]} 34. f4 {[%clk 0:00:05.7]} 34... Qf5 {[%clk 0:00:48.5]}
35. Be4 {[%clk 0:00:05.5]} 35... Qf6 {[%clk 0:00:46.5]} 36. Kf2 {[%clk
0:00:04.5]} 36... g6 {[%clk 0:00:45.5]} 37. Re3 {[%clk 0:00:04.4]} 37... Qd4
{[%clk 0:00:45]} 38. Bg2 {[%clk 0:00:03.2]} 38... Kg7 {[%clk 0:00:42.5]} 39. h3
{[%clk 0:00:03.4]} 39... h5 {[%clk 0:00:41.2]} 40. Bf3 {[%clk 0:00:03.4]} 40...
h4 {[%clk 0:00:41.1]} 41. Bg2 {[%clk 0:00:03]} 41... hxg3+ {[%clk 0:00:40.7]}
42. Kxg3 {[%clk 0:00:03.9]} 42... Bf8 {[%clk 0:00:39]} 43. Bf3 {[%clk 0:00:04]}
43... Kg8 {[%clk 0:00:37]} 44. Re4 {[%clk 0:00:04.1]} 44... Qc3 {[%clk
0:00:36.3]} 45. Re3 {[%clk 0:00:04.2]} 45... Qc1 {[%clk 0:00:36.3]} 46. h4
{[%clk 0:00:03.5]} 46... Bh6 {[%clk 0:00:35.4]} 47. h5 {[%clk 0:00:03.7]} 47...
Kg7 {[%clk 0:00:35.2]} 48. hxg6 {[%clk 0:00:03.4]} 48... Kxg6 {[%clk 0:00:34.3]}
49. Be4+ {[%clk 0:00:02.6]} 49... Kg7 {[%clk 0:00:34.5]} 50. Bf3 {[%clk
0:00:02.9]} 50... Kf6 {[%clk 0:00:30.1]} 51. Nxd6 {[%clk 0:00:02.8]} 51... Qxe3
{[%clk 0:00:28.9]} 52. Ne8+ {[%clk 0:00:03.7]} 52... Qxe8 {[%clk 0:00:28]} 53.
d6 {[%clk 0:00:02.3]} 53... Qd7 {[%clk 0:00:26.7]} 54. Bg4 {[%clk 0:00:01.9]}
54... Qxd6 {[%clk 0:00:26.5]} 0-1

[Event "*** Titled Tuesday Blitz"]
[Site "Chess.com"]
[Date "2021.03.02"]
[Round "7"]
[White "politeplayer"]
[Black "Jan1401"]
[Result "0-1"]
[WhiteElo "2221"]
[BlackElo "2375"]
[TimeControl "180+1"]
[EndTime "11:19:18 PST"]
[Termination "Jan1401 won by checkmate"]

1. e4 {[%clk 0:03:00.9]} 1... e6 {[%clk 0:02:59.7]} 2. d4 {[%clk 0:02:58.5]}
2... d5 {[%clk 0:02:59.7]} 3. exd5 {[%clk 0:02:57.9]} 3... exd5 {[%clk
0:02:59.2]} 4. Nf3 {[%clk 0:02:58.2]} 4... Nf6 {[%clk 0:02:56.7]} 5. Bd3 {[%clk
0:02:57.8]} 5... c5 {[%clk 0:02:56.3]} 6. O-O {[%clk 0:02:55.7]} 6... Nc6 {[%clk
0:02:52.8]} 7. Re1+ {[%clk 0:02:55.2]} 7... Be7 {[%clk 0:02:52.8]} 8. dxc5
{[%clk 0:02:55.1]} 8... O-O {[%clk 0:02:52.8]} 9. Nbd2 {[%clk 0:02:30.3]} 9...
Bxc5 {[%clk 0:02:49.4]} 10. Nb3 {[%clk 0:02:30.2]} 10... Bb6 {[%clk 0:02:49]}
11. Bg5 {[%clk 0:02:26]} 11... Bg4 {[%clk 0:02:29.6]} 12. h3 {[%clk 0:02:17.1]}
12... Bh5 {[%clk 0:02:27.9]} 13. a4 {[%clk 0:02:05.2]} 13... a6 {[%clk
0:02:19.1]} 14. a5 {[%clk 0:02:03.6]} 14... Ba7 {[%clk 0:02:17.2]} 15. Ra4
{[%clk 0:01:59.8]} 15... Qd6 {[%clk 0:02:13.8]} 16. Rh4 {[%clk 0:01:50.9]} 16...
Bg6 {[%clk 0:02:04.1]} 17. Bxg6 {[%clk 0:01:30.8]} 17... hxg6 {[%clk 0:01:58.6]}
18. Qd2 {[%clk 0:01:11.4]} 18... Rfe8 {[%clk 0:01:49.7]} 19. Rxe8+ {[%clk
0:01:05]} 19... Rxe8 {[%clk 0:01:48.9]} 20. Bxf6 {[%clk 0:00:28.2]} 20... Qxf6
{[%clk 0:01:47]} 21. Rf4 {[%clk 0:00:26.4]} 21... Qd6 {[%clk 0:01:27.8]} 22. Ng5
{[%clk 0:00:25]} 22... f6 {[%clk 0:01:23.7]} 23. Nf3 {[%clk 0:00:20.3]} 23... g5
{[%clk 0:01:22.1]} 24. Ra4 {[%clk 0:00:17.9]} 24... Ne5 {[%clk 0:01:09]} 25.
Nxe5 {[%clk 0:00:16.9]} 25... Qxe5 {[%clk 0:01:08.9]} 26. Ra1 {[%clk 0:00:15.8]}
26... Kf8 {[%clk 0:01:01.1]} 27. Rd1 {[%clk 0:00:15.3]} 27... Bb8 {[%clk
0:00:51.4]} 28. g3 {[%clk 0:00:13.5]} 28... Ba7 {[%clk 0:00:51.4]} 29. Qxd5
{[%clk 0:00:10.6]} 29... Qxg3+ {[%clk 0:00:51.3]} 30. Kh1 {[%clk 0:00:09.5]}
30... Qxh3+ {[%clk 0:00:51.3]} 31. Kg1 {[%clk 0:00:09.7]} 31... Qg4+ {[%clk
0:00:49.1]} 32. Kh1 {[%clk 0:00:08.5]} 32... Qe4+ {[%clk 0:00:49]} 33. Qxe4
{[%clk 0:00:08.4]} 33... Rxe4 {[%clk 0:00:49.1]} 34. Rd7 {[%clk 0:00:07.9]}
34... Rb4 {[%clk 0:00:48.8]} 35. Nd2 {[%clk 0:00:05]} 35... Rxb2 {[%clk
0:00:43.9]} 36. Nc4 {[%clk 0:00:04.7]} 36... Rxc2 {[%clk 0:00:42.2]} 37. Nd6
{[%clk 0:00:04.7]} 37... Bxf2 {[%clk 0:00:39.7]} 38. Rf7+ {[%clk 0:00:04]} 38...
Kg8 {[%clk 0:00:39.7]} 39. Rxb7 {[%clk 0:00:04]} 39... g4 {[%clk 0:00:30.7]} 40.
Nf5 {[%clk 0:00:03.8]} 40... g6 {[%clk 0:00:26.6]} 41. Nh6+ {[%clk 0:00:03.1]}
41... Kh8 {[%clk 0:00:25.6]} 42. Nf7+ {[%clk 0:00:02.8]} 42... Kg7 {[%clk
0:00:24.5]} 43. Ne5+ {[%clk 0:00:02.8]} 43... Kh6 {[%clk 0:00:24.2]} 44. Nxg4+
{[%clk 0:00:03.1]} 44... Kg5 {[%clk 0:00:24.6]} 45. Nxf2 {[%clk 0:00:03.2]}
45... Rxf2 {[%clk 0:00:24.1]} 46. Rb6 {[%clk 0:00:03.7]} 46... Kg4 {[%clk
0:00:22.1]} 47. Rxa6 {[%clk 0:00:03.7]} 47... Kg3 {[%clk 0:00:22.4]} 48. Kg1
{[%clk 0:00:03.5]} 48... Rf4 {[%clk 0:00:21.7]} 49. Ra7 {[%clk 0:00:02.8]} 49...
g5 {[%clk 0:00:20.8]} 50. a6 {[%clk 0:00:02.5]} 50... f5 {[%clk 0:00:20.8]} 51.
Ra8 {[%clk 0:00:02.2]} 51... Ra4 {[%clk 0:00:20.9]} 52. Kf1 {[%clk 0:00:02.3]}
52... f4 {[%clk 0:00:21.1]} 53. a7 {[%clk 0:00:02.4]} 53... f3 {[%clk
0:00:21.2]} 54. Rg8 {[%clk 0:00:02.4]} 54... Ra1# {[%clk 0:00:21.1]} 0-1

[Event "*** Titled Tuesday Blitz"]
[Site "Chess.com"]
[Date "2021.03.02"]
[Round "7"]
[White "superchess02"]
[Black "MatyChess1"]
[Result "0-1"]
[WhiteElo "2772"]
[BlackElo "2604"]
[TimeControl "180+1"]
[EndTime "11:19:20 PST"]
[Termination "MatyChess1 won by resignation"]

1. d4 {[%clk 0:03:00.9]} 1... d6 {[%clk 0:02:57.9]} 2. c4 {[%clk 0:03:01]} 2...
Nd7 {[%clk 0:02:56.4]} 3. Nf3 {[%clk 0:03:01.9]} 3... e5 {[%clk 0:02:56.4]} 4.
Nc3 {[%clk 0:03:00.9]} 4... Ngf6 {[%clk 0:02:56.1]} 5. e4 {[%clk 0:03:00.3]}
5... g6 {[%clk 0:02:51.7]} 6. Be2 {[%clk 0:02:55.7]} 6... Bg7 {[%clk 0:02:51.7]}
7. O-O {[%clk 0:02:55.6]} 7... exd4 {[%clk 0:02:49]} 8. Nxd4 {[%clk 0:02:55.3]}
8... O-O {[%clk 0:02:49.2]} 9. f3 {[%clk 0:02:55.5]} 9... Re8 {[%clk 0:02:48.1]}
10. Kh1 {[%clk 0:02:54.1]} 10... a5 {[%clk 0:02:48.1]} 11. Be3 {[%clk
0:02:52.5]} 11... c6 {[%clk 0:02:41.3]} 12. Qd2 {[%clk 0:02:52.2]} 12... Nc5
{[%clk 0:02:38.5]} 13. Rad1 {[%clk 0:02:51.6]} 13... Qc7 {[%clk 0:02:39.1]} 14.
Nc2 {[%clk 0:02:51.2]} 14... Bf8 {[%clk 0:02:38.6]} 15. Bf4 {[%clk 0:02:50.8]}
15... Rd8 {[%clk 0:02:23.3]} 16. Bg5 {[%clk 0:02:49.7]} 16... Be7 {[%clk
0:02:20.7]} 17. Ne3 {[%clk 0:02:36.5]} 17... Be6 {[%clk 0:02:16.9]} 18. Qd4
{[%clk 0:02:33.9]} 18... Ne8 {[%clk 0:01:58.4]} 19. Bxe7 {[%clk 0:02:33.5]}
19... Qxe7 {[%clk 0:01:59.3]} 20. f4 {[%clk 0:02:31.8]} 20... f6 {[%clk
0:01:59.2]} 21. Bf3 {[%clk 0:02:16.5]} 21... Bf7 {[%clk 0:01:57.4]} 22. Ng4
{[%clk 0:02:13.4]} 22... Kg7 {[%clk 0:01:55.1]} 23. Rfe1 {[%clk 0:02:09.9]}
23... h5 {[%clk 0:01:54.7]} 24. Nf2 {[%clk 0:02:08.9]} 24... Nc7 {[%clk
0:01:22.9]} 25. b3 {[%clk 0:02:08.4]} 25... Rd7 {[%clk 0:01:05]} 26. Nd3 {[%clk
0:02:01.3]} 26... N7e6 {[%clk 0:01:01.9]} 27. Qe3 {[%clk 0:02:01]} 27... Nxd3
{[%clk 0:01:02.8]} 28. Rxd3 {[%clk 0:02:01.5]} 28... Nc5 {[%clk 0:01:03.7]} 29.
Rd2 {[%clk 0:02:01.2]} 29... Re8 {[%clk 0:01:04.6]} 30. Red1 {[%clk 0:02:00.1]}
30... g5 {[%clk 0:00:33.8]} 31. g3 {[%clk 0:00:50.9]} 31... g4 {[%clk
0:00:30.5]} 32. Bg2 {[%clk 0:00:51]} 32... Kg8 {[%clk 0:00:25.6]} 33. Kg1 {[%clk
0:00:44]} 33... f5 {[%clk 0:00:25.6]} 34. Re2 {[%clk 0:00:34.8]} 34... fxe4
{[%clk 0:00:22.1]} 35. f5 {[%clk 0:00:34.6]} 35... Qf6 {[%clk 0:00:17.1]} 36.
Rf1 {[%clk 0:00:33.1]} 36... Rde7 {[%clk 0:00:16.1]} 37. Rd2 {[%clk 0:00:31]}
37... Re5 {[%clk 0:00:15.8]} 38. Ne2 {[%clk 0:00:28.9]} 38... Nd3 {[%clk
0:00:13]} 39. Nf4 {[%clk 0:00:27]} 39... Rxf5 {[%clk 0:00:11.4]} 40. Bxe4 {[%clk
0:00:26.1]} 40... Nxf4 {[%clk 0:00:09.4]} 41. gxf4 {[%clk 0:00:25.5]} 41... d5
{[%clk 0:00:08.2]} 42. cxd5 {[%clk 0:00:20.5]} 42... cxd5 {[%clk 0:00:09.1]} 43.
Rc1 {[%clk 0:00:12.1]} 43... Rxe4 {[%clk 0:00:09.3]} 44. Rc8+ {[%clk 0:00:11.8]}
44... Kg7 {[%clk 0:00:09.9]} 45. Qd3 {[%clk 0:00:12.7]} 45... Rfxf4 {[%clk
0:00:09.6]} 46. Rd1 {[%clk 0:00:13.6]} 46... Qd4+ {[%clk 0:00:08.6]} 47. Qxd4+
{[%clk 0:00:13.7]} 47... Rxd4 {[%clk 0:00:09.5]} 48. Re1 {[%clk 0:00:14.5]}
48... Rfe4 {[%clk 0:00:09.8]} 49. Rxe4 {[%clk 0:00:14.5]} 49... dxe4 {[%clk
0:00:09.7]} 50. Rc7 {[%clk 0:00:15.4]} 50... e3 {[%clk 0:00:10]} 51. Kf1 {[%clk
0:00:15.6]} 51... Rd1+ {[%clk 0:00:09.4]} 52. Ke2 {[%clk 0:00:16.5]} 52... Rd2+
{[%clk 0:00:10.1]} 53. Kxe3 {[%clk 0:00:16.3]} 53... Rxa2 {[%clk 0:00:10.7]} 54.
h4 {[%clk 0:00:17.2]} 54... gxh3 {[%clk 0:00:10.6]} 55. Rc2 {[%clk 0:00:16.3]}
55... Rxc2 {[%clk 0:00:09.7]} 0-1

[Event "*** Titled Tuesday Blitz"]
[Site "Chess.com"]
[Date "2021.03.02"]
[Round "7"]
[White "Vugar_Manafov"]
[Black "MrChampion_Coach"]
[Result "1-0"]
[WhiteElo "2633"]
[BlackElo "2481"]
[TimeControl "180+1"]
[EndTime "11:19:20 PST"]
[Termination "Vugar_Manafov won on time"]

1. Nf3 {[%clk 0:03:00.9]} 1... Nf6 {[%clk 0:02:58.3]} 2. g3 {[%clk 0:03:00.9]}
2... b5 {[%clk 0:02:55.4]} 3. Bg2 {[%clk 0:02:58.4]} 3... Bb7 {[%clk 0:02:55.6]}
4. O-O {[%clk 0:02:57.9]} 4... a6 {[%clk 0:02:47.2]} 5. d3 {[%clk 0:02:57.6]}
5... e6 {[%clk 0:02:46]} 6. e4 {[%clk 0:02:56.9]} 6... d5 {[%clk 0:02:45.1]} 7.
Nc3 {[%clk 0:02:56.7]} 7... Be7 {[%clk 0:02:41.1]} 8. h3 {[%clk 0:02:53]} 8...
c5 {[%clk 0:02:36.3]} 9. Nd2 {[%clk 0:02:52.7]} 9... Nc6 {[%clk 0:02:31.4]} 10.
f4 {[%clk 0:02:51.3]} 10... dxe4 {[%clk 0:02:26.3]} 11. dxe4 {[%clk 0:02:48.2]}
11... Qb6 {[%clk 0:02:09]} 12. Kh2 {[%clk 0:02:46.7]} 12... Rd8 {[%clk
0:02:08.6]} 13. Ne2 {[%clk 0:02:35.6]} 13... c4 {[%clk 0:01:55.5]} 14. c3 {[%clk
0:02:32.6]} 14... h5 {[%clk 0:01:26.3]} 15. Qc2 {[%clk 0:02:22.6]} 15... h4
{[%clk 0:01:21.9]} 16. g4 {[%clk 0:02:21.1]} 16... Qe3 {[%clk 0:01:19.4]} 17.
Nxc4 {[%clk 0:02:15.7]} 17... Qd3 {[%clk 0:01:07]} 18. Qxd3 {[%clk 0:02:11.9]}
18... Rxd3 {[%clk 0:01:07.9]} 19. Ne3 {[%clk 0:02:12.5]} 19... Na5 {[%clk
0:01:03.4]} 20. e5 {[%clk 0:02:08.2]} 20... Bxg2 {[%clk 0:01:02.8]} 21. Kxg2
{[%clk 0:02:09.1]} 21... Ne4 {[%clk 0:00:56.5]} 22. Kf3 {[%clk 0:02:06.5]} 22...
Ng3 {[%clk 0:00:42.8]} 23. Rd1 {[%clk 0:01:54.4]} 23... Rxd1 {[%clk 0:00:28.2]}
24. Nxd1 {[%clk 0:01:55.3]} 24... O-O {[%clk 0:00:10.1]} 25. Nxg3 {[%clk
0:01:50.2]} 25... hxg3 {[%clk 0:00:11]} 26. Kxg3 {[%clk 0:01:49.6]} 26... Rd8
{[%clk 0:00:11.1]} 27. Nf2 {[%clk 0:01:49.1]} 27... Bc5 {[%clk 0:00:10.6]} 28.
Ne4 {[%clk 0:01:42.3]} 28... Bb6 {[%clk 0:00:09.4]} 29. b3 {[%clk 0:01:36.9]}
29... Rd3+ {[%clk 0:00:06.8]} 30. Kg2 {[%clk 0:01:35.1]} 30... b4 {[%clk
0:00:03.2]} 31. cxb4 {[%clk 0:01:13.9]} 31... Bd4 {[%clk 0:00:03.5]} 32. Rb1
{[%clk 0:01:11.7]} 32... Nc6 {[%clk 0:00:03.8]} 33. Bb2 {[%clk 0:01:09]} 33...
Bb6 {[%clk 0:00:02.7]} 34. Rc1 {[%clk 0:01:06.3]} 34... Nxb4 {[%clk 0:00:02.8]}
35. Ng5 {[%clk 0:01:06.9]} 35... Rd8 {[%clk 0:00:01.8]} 36. Kf3 {[%clk
0:01:04.3]} 36... Nd3 {[%clk 0:00:02.1]} 37. Rb1 {[%clk 0:01:03.3]} 37... Ba7
{[%clk 0:00:02.2]} 38. Ba3 {[%clk 0:01:02.8]} 38... Rc8 {[%clk 0:00:02.4]} 39.
Rd1 {[%clk 0:01:01.5]} 39... Nc5 {[%clk 0:00:02.5]} 40. Rc1 {[%clk 0:01:01]}
40... f6 {[%clk 0:00:01.4]} 41. exf6 {[%clk 0:00:58.5]} 41... gxf6 {[%clk
0:00:02]} 42. Nxe6 {[%clk 0:00:58.8]} 42... Rc6 {[%clk 0:00:01.8]} 43. Nxc5
{[%clk 0:00:58]} 43... Kf7 {[%clk 0:00:01.9]} 44. b4 {[%clk 0:00:57.4]} 44... a5
{[%clk 0:00:01.9]} 45. b5 {[%clk 0:00:57.4]} 45... Rb6 {[%clk 0:00:02.5]} 46.
Rb1 {[%clk 0:00:56.5]} 46... Rb8 {[%clk 0:00:02.8]} 47. b6 {[%clk 0:00:55.9]}
47... Bxb6 {[%clk 0:00:02.6]} 48. Nd7 {[%clk 0:00:54.7]} 48... Rb7 {[%clk
0:00:03.1]} 49. Nxb6 {[%clk 0:00:50.4]} 49... f5 {[%clk 0:00:03.2]} 50. g5
{[%clk 0:00:49.9]} 50... Kg6 {[%clk 0:00:03.9]} 51. h4 {[%clk 0:00:49.4]} 51...
a4 {[%clk 0:00:04.3]} 52. Rb2 {[%clk 0:00:49]} 52... Kh5 {[%clk 0:00:04.3]} 53.
Nd5 {[%clk 0:00:49]} 53... Rf7 {[%clk 0:00:02.4]} 54. Nf6+ {[%clk 0:00:46.9]}
54... Kg6 {[%clk 0:00:02.1]} 55. h5+ {[%clk 0:00:46.9]} 55... Kg7 {[%clk
0:00:02.6]} 56. Rb8 {[%clk 0:00:47.1]} 56... Rc7 {[%clk 0:00:01.3]} 57. Ne8+
{[%clk 0:00:46]} 1-0

[Event "*** Titled Tuesday Blitz"]
[Site "Chess.com"]
[Date "2021.03.02"]
[Round "7"]
[White "iturrizaga"]
[Black "Kobalia"]
[Result "0-1"]
[WhiteElo "2841"]
[BlackElo "2718"]
[TimeControl "180+1"]
[EndTime "11:19:24 PST"]
[Termination "Kobalia won on time"]

1. c4 {[%clk 0:03:00.9]} 1... c6 {[%clk 0:02:59.6]} 2. Nf3 {[%clk 0:03:00.3]}
2... d5 {[%clk 0:03:00.1]} 3. e3 {[%clk 0:02:58.5]} 3... Bg4 {[%clk 0:02:55.5]}
4. Qb3 {[%clk 0:02:55.6]} 4... Bxf3 {[%clk 0:02:51.1]} 5. gxf3 {[%clk
0:02:50.2]} 5... Qd7 {[%clk 0:02:48.1]} 6. Nc3 {[%clk 0:02:47.8]} 6... Nf6
{[%clk 0:02:47.2]} 7. d4 {[%clk 0:02:46.1]} 7... e6 {[%clk 0:02:45]} 8. e4
{[%clk 0:02:39.9]} 8... dxc4 {[%clk 0:02:34.4]} 9. Bxc4 {[%clk 0:02:39.5]} 9...
b5 {[%clk 0:02:28.3]} 10. Be2 {[%clk 0:02:38]} 10... Qxd4 {[%clk 0:02:25.9]} 11.
Be3 {[%clk 0:02:37.3]} 11... Qb4 {[%clk 0:02:25.3]} 12. Qc2 {[%clk 0:02:33.7]}
12... Be7 {[%clk 0:02:22.6]} 13. O-O {[%clk 0:02:15.5]} 13... O-O {[%clk
0:02:21.4]} 14. a4 {[%clk 0:02:15.3]} 14... Nbd7 {[%clk 0:02:14.1]} 15. axb5
{[%clk 0:02:02.5]} 15... cxb5 {[%clk 0:02:14]} 16. Nxb5 {[%clk 0:01:52.9]} 16...
Rfc8 {[%clk 0:02:12.9]} 17. Qd2 {[%clk 0:01:26.6]} 17... Qxd2 {[%clk 0:02:07.3]}
18. Bxd2 {[%clk 0:01:27.5]} 18... Rc2 {[%clk 0:02:06.6]} 19. Bc3 {[%clk
0:01:21.4]} 19... Rxe2 {[%clk 0:01:44.6]} 20. Nd4 {[%clk 0:01:20.4]} 20... Ne5
{[%clk 0:01:41.4]} 21. Nxe2 {[%clk 0:01:11]} 21... Nxf3+ {[%clk 0:01:40.8]} 22.
Kg2 {[%clk 0:00:46.2]} 22... Nh4+ {[%clk 0:01:40.6]} 23. Kh1 {[%clk 0:00:42.5]}
23... Nxe4 {[%clk 0:01:39.6]} 24. Bd4 {[%clk 0:00:39.5]} 24... a5 {[%clk
0:01:38.6]} 25. Rfc1 {[%clk 0:00:35]} 25... h5 {[%clk 0:01:28.7]} 26. Rc4 {[%clk
0:00:25.9]} 26... Nd2 {[%clk 0:00:41.3]} 27. Rc3 {[%clk 0:00:16.1]} 27... Bb4
{[%clk 0:00:33.3]} 28. Rd3 {[%clk 0:00:10.7]} 28... Rd8 {[%clk 0:00:27.4]} 29.
Rd1 {[%clk 0:00:09.6]} 29... Nhf3 {[%clk 0:00:24.9]} 30. Kg2 {[%clk 0:00:08.8]}
30... e5 {[%clk 0:00:23.3]} 31. Rxf3 {[%clk 0:00:08.4]} 31... Nxf3 {[%clk
0:00:23.4]} 32. Kxf3 {[%clk 0:00:09.3]} 32... exd4 {[%clk 0:00:23.5]} 33. Rxd4
{[%clk 0:00:08.6]} 33... Rxd4 {[%clk 0:00:21.4]} 34. Nxd4 {[%clk 0:00:09.5]}
34... f6 {[%clk 0:00:20.3]} 35. Nc6 {[%clk 0:00:08.7]} 35... Kf7 {[%clk
0:00:13.7]} 36. Ke4 {[%clk 0:00:08.8]} 36... Be1 {[%clk 0:00:10.9]} 37. f3
{[%clk 0:00:08.1]} 37... Kg6 {[%clk 0:00:10.5]} 38. b3 {[%clk 0:00:07.5]} 38...
f5+ {[%clk 0:00:10.2]} 39. Kf4 {[%clk 0:00:05.2]} 39... Bd2+ {[%clk 0:00:08.8]}
40. Ke5 {[%clk 0:00:04.8]} 40... Kg5 {[%clk 0:00:08.3]} 41. Kd4 {[%clk
0:00:01.6]} 41... Kf4 {[%clk 0:00:06.7]} 42. Kd3 {[%clk 0:00:02.1]} 42... Be1
{[%clk 0:00:06.7]} 43. Ke2 {[%clk 0:00:02.6]} 43... Bb4 {[%clk 0:00:06.5]} 44.
Nd4 {[%clk 0:00:03]} 44... g6 {[%clk 0:00:05.4]} 45. Ne6+ {[%clk 0:00:02.5]}
45... Ke5 {[%clk 0:00:05.5]} 46. Nd8 {[%clk 0:00:03.1]} 46... Kd5 {[%clk
0:00:04.3]} 47. Nf7 {[%clk 0:00:03.2]} 47... Ke6 {[%clk 0:00:03.9]} 48. Ng5+
{[%clk 0:00:02.8]} 48... Kf6 {[%clk 0:00:04]} 49. Nh3 {[%clk 0:00:03.7]} 49...
Bc5 {[%clk 0:00:03.9]} 50. Nf4 {[%clk 0:00:03.7]} 50... Bd6 {[%clk 0:00:03.8]}
51. Nd5+ {[%clk 0:00:02.7]} 51... Ke6 {[%clk 0:00:04]} 0-1

[Event "*** Titled Tuesday Blitz"]
[Site "Chess.com"]
[Date "2021.03.02"]
[Round "7"]
[White "Ajedrez_con_German"]
[Black "vinniethepooh"]
[Result "1/2-1/2"]
[WhiteElo "2569"]
[BlackElo "2703"]
[TimeControl "180+1"]
[EndTime "11:19:26 PST"]
[Termination "Game drawn by repetition"]

1. b3 {[%clk 0:03:00.9]} 1... d5 {[%clk 0:02:59.1]} 2. Nf3 {[%clk 0:02:55.1]}
2... Nf6 {[%clk 0:02:59.1]} 3. Bb2 {[%clk 0:02:54.7]} 3... Bf5 {[%clk
0:02:59.5]} 4. e3 {[%clk 0:02:54.5]} 4... e6 {[%clk 0:02:59.9]} 5. d4 {[%clk
0:02:54.8]} 5... h6 {[%clk 0:03:00.2]} 6. Bd3 {[%clk 0:02:54.7]} 6... Bxd3
{[%clk 0:02:57.8]} 7. Qxd3 {[%clk 0:02:55.6]} 7... Nbd7 {[%clk 0:02:58.4]} 8.
O-O {[%clk 0:02:55.4]} 8... c5 {[%clk 0:02:51.9]} 9. Nbd2 {[%clk 0:02:51.4]}
9... Rc8 {[%clk 0:02:48.9]} 10. c4 {[%clk 0:02:51.4]} 10... Qb6 {[%clk
0:02:42.1]} 11. cxd5 {[%clk 0:02:47.2]} 11... Nxd5 {[%clk 0:02:41.3]} 12. Nc4
{[%clk 0:02:46.7]} 12... Qa6 {[%clk 0:02:36.9]} 13. Rfd1 {[%clk 0:02:40.1]}
13... b5 {[%clk 0:02:24]} 14. Nce5 {[%clk 0:02:29.3]} 14... c4 {[%clk
0:02:19.8]} 15. bxc4 {[%clk 0:02:26.5]} 15... bxc4 {[%clk 0:02:20.7]} 16. Qe2
{[%clk 0:02:19.8]} 16... Nxe5 {[%clk 0:02:17.5]} 17. Nxe5 {[%clk 0:02:19.4]}
17... Bd6 {[%clk 0:02:13.9]} 18. e4 {[%clk 0:01:36.5]} 18... Nb4 {[%clk
0:01:09.1]} 19. Bc3 {[%clk 0:01:29.5]} 19... Bxe5 {[%clk 0:00:29.5]} 20. Bxb4
{[%clk 0:01:28.7]} 20... Bd6 {[%clk 0:00:30.2]} 21. Bxd6 {[%clk 0:01:05.5]}
21... Qxd6 {[%clk 0:00:31.1]} 22. Rac1 {[%clk 0:01:05.8]} 22... Qa6 {[%clk
0:00:18.1]} 23. d5 {[%clk 0:01:03.5]} 23... O-O {[%clk 0:00:18.4]} 24. Rd4
{[%clk 0:00:43.6]} 24... exd5 {[%clk 0:00:16.8]} 25. exd5 {[%clk 0:00:43.6]}
25... Rfe8 {[%clk 0:00:13.4]} 26. Qc2 {[%clk 0:00:32.5]} 26... c3 {[%clk
0:00:12.4]} 27. d6 {[%clk 0:00:24.9]} 27... Red8 {[%clk 0:00:12.4]} 28. d7
{[%clk 0:00:21.6]} 28... Rc7 {[%clk 0:00:11.4]} 29. h3 {[%clk 0:00:17.1]} 29...
g6 {[%clk 0:00:05.9]} 30. Rcd1 {[%clk 0:00:13.3]} 30... Qe6 {[%clk 0:00:04.7]}
31. Qd3 {[%clk 0:00:11.4]} 31... c2 {[%clk 0:00:04.4]} 32. Rc1 {[%clk
0:00:11.6]} 32... Rcxd7 {[%clk 0:00:04.8]} 33. Rxd7 {[%clk 0:00:11.2]} 33...
Rxd7 {[%clk 0:00:05.7]} 34. Qxc2 {[%clk 0:00:11.2]} 34... Kh7 {[%clk 0:00:06.2]}
35. a4 {[%clk 0:00:08.5]} 35... Re7 {[%clk 0:00:06.5]} 36. Rd1 {[%clk
0:00:07.6]} 36... Qf6 {[%clk 0:00:06.2]} 37. Qd2 {[%clk 0:00:07.3]} 37... Kg7
{[%clk 0:00:05.6]} 38. g3 {[%clk 0:00:07.8]} 38... Rb7 {[%clk 0:00:05.1]} 39.
Kg2 {[%clk 0:00:08]} 39... Re7 {[%clk 0:00:05.6]} 40. Qd4 {[%clk 0:00:08.1]}
40... Qxd4 {[%clk 0:00:05.4]} 41. Rxd4 {[%clk 0:00:09]} 41... Kf6 {[%clk
0:00:06.2]} 42. Rd6+ {[%clk 0:00:09.1]} 42... Re6 {[%clk 0:00:04.4]} 43. Rd7
{[%clk 0:00:09.3]} 43... Ra6 {[%clk 0:00:04.4]} 44. Rd4 {[%clk 0:00:09.4]} 44...
Ke5 {[%clk 0:00:05.1]} 45. Rf4 {[%clk 0:00:08.9]} 45... f5 {[%clk 0:00:04.8]}
46. h4 {[%clk 0:00:09.3]} 46... g5 {[%clk 0:00:05.1]} 47. hxg5 {[%clk
0:00:09.2]} 47... hxg5 {[%clk 0:00:06]} 48. Rb4 {[%clk 0:00:09.2]} 48... g4
{[%clk 0:00:06.7]} 49. Rb5+ {[%clk 0:00:09.2]} 49... Ke6 {[%clk 0:00:07.2]} 50.
a5 {[%clk 0:00:08.8]} 50... Kf6 {[%clk 0:00:06.5]} 51. Kf1 {[%clk 0:00:09]}
51... Ke6 {[%clk 0:00:06.6]} 52. Ke2 {[%clk 0:00:09.4]} 52... Rc6 {[%clk
0:00:07.1]} 53. Rb7 {[%clk 0:00:08.6]} 53... Ra6 {[%clk 0:00:05.9]} 54. Rb5
{[%clk 0:00:08.6]} 54... Rd6 {[%clk 0:00:06.2]} 55. Rb7 {[%clk 0:00:08.6]} 55...
Ra6 {[%clk 0:00:06.6]} 56. Rb5 {[%clk 0:00:08.6]} 1/2-1/2